[Event "*** Titled Tuesday 3|2 Blitz (Late)"]
[Site "Chess.com"]
[Date "2016.12.06"]
[Round "1"]
[White "josiwales"]
[Black "LPSupi"]
[Result "0-1"]
[WhiteElo "2242"]
[BlackElo "2591"]
[TimeControl "180+2"]
[EndTime "17:03:47 PST"]
[Termination "LPSupi won by resignation"]

1. e4 {[%clk 0:03:02]} 1... e5 {[%clk 0:02:59.2]} 2. Nf3 {[%clk 0:03:02.8]} 2...
Nc6 {[%clk 0:03:00.9]} 3. Bc4 {[%clk 0:03:04.4]} 3... Nf6 {[%clk 0:03:00.1]} 4.
d4 {[%clk 0:03:04.6]} 4... exd4 {[%clk 0:02:59.9]} 5. O-O {[%clk 0:03:05.5]}
5... Nxe4 {[%clk 0:02:59.6]} 6. Re1 {[%clk 0:03:06.5]} 6... d5 {[%clk
0:03:00.9]} 7. Bxd5 {[%clk 0:03:07.8]} 7... Qxd5 {[%clk 0:03:02.1]} 8. Nc3
{[%clk 0:03:09.7]} 8... Qd7 {[%clk 0:03:02.2]} 9. Nxe4 {[%clk 0:03:08.2]} 9...
Be7 {[%clk 0:03:00.9]} 10. Bg5 {[%clk 0:03:08.9]} 10... O-O {[%clk 0:02:54.8]}
11. Bxe7 {[%clk 0:03:09]} 11... Qxe7 {[%clk 0:02:55.1]} 12. Nxd4 {[%clk
0:03:09.7]} 12... Nxd4 {[%clk 0:02:45.2]} 13. Qxd4 {[%clk 0:03:11.6]} 13... Rd8
{[%clk 0:02:40.9]} 14. Qe3 {[%clk 0:03:01]} 14... Bf5 {[%clk 0:02:38.2]} 15. Qf3
{[%clk 0:02:47.6]} 15... Bg6 {[%clk 0:02:31]} 16. c3 {[%clk 0:02:43.6]} 16...
Re8 {[%clk 0:02:27.6]} 17. Ng3 {[%clk 0:02:18.7]} 17... Qxe1+ {[%clk 0:02:26.2]}
18. Rxe1 {[%clk 0:02:20.6]} 18... Rxe1+ {[%clk 0:02:27.8]} 19. Nf1 {[%clk
0:02:22.5]} 19... c6 {[%clk 0:02:09.8]} 20. h4 {[%clk 0:02:18.2]} 20... Rd8
{[%clk 0:02:05.3]} 21. h5 {[%clk 0:02:02.1]} 21... Bd3 {[%clk 0:02:04.3]} 22.
Kh2 {[%clk 0:02:02.7]} 22... Rxf1 {[%clk 0:02:01.1]} 0-1

[Event "*** Titled Tuesday 3|2 Blitz (Late)"]
[Site "Chess.com"]
[Date "2016.12.06"]
[Round "1"]
[White "stalyansky"]
[Black "MaestroASK"]
[Result "0-1"]
[WhiteElo "2116"]
[BlackElo "2446"]
[TimeControl "180+2"]
[EndTime "17:06:09 PST"]
[Termination "MaestroASK won on time"]

1. e4 {[%clk 0:03:00.7]} 1... d6 {[%clk 0:03:00.4]} 2. d4 {[%clk 0:02:59.6]}
2... g6 {[%clk 0:03:01.7]} 3. Nc3 {[%clk 0:02:51.5]} 3... c6 {[%clk 0:03:02.1]}
4. Be3 {[%clk 0:02:51.2]} 4... e5 {[%clk 0:03:02.5]} 5. Qd2 {[%clk 0:02:37.8]}
5... Bg7 {[%clk 0:03:01.6]} 6. f3 {[%clk 0:02:33.7]} 6... Nd7 {[%clk 0:03:01.1]}
7. d5 {[%clk 0:02:29.8]} 7... c5 {[%clk 0:03:00.9]} 8. O-O-O {[%clk 0:02:28.9]}
8... a6 {[%clk 0:03:01]} 9. h4 {[%clk 0:02:26.8]} 9... h5 {[%clk 0:03:01]} 10.
g4 {[%clk 0:02:14.3]} 10... hxg4 {[%clk 0:03:00.8]} 11. fxg4 {[%clk 0:02:14.9]}
11... Rxh4 {[%clk 0:02:59.9]} 12. Rxh4 {[%clk 0:01:54.8]} 12... Qxh4 {[%clk
0:02:58.9]} 13. Be2 {[%clk 0:01:55.8]} 13... b5 {[%clk 0:02:51]} 14. Nf3 {[%clk
0:01:53.3]} 14... Qe7 {[%clk 0:02:46.8]} 15. Rh1 {[%clk 0:01:08.2]} 15... Ngf6
{[%clk 0:02:13.4]} 16. g5 {[%clk 0:00:46.5]} 16... Nh5 {[%clk 0:02:11.1]} 17.
Ng1 {[%clk 0:00:43.8]} 17... Ng3 {[%clk 0:02:09]} 18. Rh7 {[%clk 0:00:42.6]}
18... Kf8 {[%clk 0:02:02.5]} 19. Bg4 {[%clk 0:00:40.7]} 19... b4 {[%clk
0:02:00.6]} 20. Qh2 {[%clk 0:00:40.2]} 20... Kg8 {[%clk 0:01:52.4]} 21. Na4
{[%clk 0:00:23.4]} 21... Nf1 {[%clk 0:01:46.8]} 22. Qh3 {[%clk 0:00:05.8]} 22...
Nxe3 {[%clk 0:01:46.9]} 0-1

[Event "*** Titled Tuesday 3|2 Blitz (Late)"]
[Site "Chess.com"]
[Date "2016.12.06"]
[Round "1"]
[White "MattyDPerrine"]
[Black "VitaliyBernadskiy"]
[Result "0-1"]
[WhiteElo "2206"]
[BlackElo "2556"]
[TimeControl "180+2"]
[EndTime "17:06:31 PST"]
[Termination "VitaliyBernadskiy won by resignation"]

1. d4 {[%clk 0:03:00]} 1... Nf6 {[%clk 0:02:55.1]} 2. Nf3 {[%clk 0:02:59.6]}
2... g6 {[%clk 0:02:56.6]} 3. g3 {[%clk 0:03:00.8]} 3... Bg7 {[%clk 0:02:58]} 4.
Bg2 {[%clk 0:03:02.6]} 4... O-O {[%clk 0:02:59.7]} 5. O-O {[%clk 0:03:04.3]}
5... d6 {[%clk 0:03:01.3]} 6. c4 {[%clk 0:03:05.9]} 6... Nbd7 {[%clk 0:03:03]}
7. Nc3 {[%clk 0:03:07.6]} 7... e5 {[%clk 0:03:04.7]} 8. e4 {[%clk 0:03:09.3]}
8... a6 {[%clk 0:03:05.6]} 9. Qc2 {[%clk 0:02:47.9]} 9... Rb8 {[%clk 0:03:06]}
10. Rd1 {[%clk 0:02:48.6]} 10... exd4 {[%clk 0:03:05.1]} 11. Nxd4 {[%clk
0:02:49.4]} 11... Ne5 {[%clk 0:03:06.6]} 12. c5 {[%clk 0:02:39]} 12... Re8
{[%clk 0:02:43.3]} 13. cxd6 {[%clk 0:02:24.8]} 13... cxd6 {[%clk 0:02:41]} 14.
h3 {[%clk 0:02:13.9]} 14... Bd7 {[%clk 0:02:36.8]} 15. Qb3 {[%clk 0:02:03.3]}
15... b5 {[%clk 0:02:36.2]} 16. Bg5 {[%clk 0:01:52.4]} 16... h6 {[%clk
0:02:34.1]} 17. Bf4 {[%clk 0:01:52.2]} 17... Nc4 {[%clk 0:02:33.9]} 18. a4
{[%clk 0:01:31.6]} 18... g5 {[%clk 0:02:27.5]} 19. axb5 {[%clk 0:01:20]} 19...
axb5 {[%clk 0:02:28.6]} 20. Ndxb5 {[%clk 0:01:04.4]} 20... Be6 {[%clk
0:02:05.8]} 21. Bc1 {[%clk 0:00:52.4]} 21... Ne3 {[%clk 0:02:06.4]} 22. Qa4
{[%clk 0:00:51.9]} 22... Nxd1 {[%clk 0:02:04.1]} 23. Qxd1 {[%clk 0:00:53.8]}
23... Qb6 {[%clk 0:01:50.6]} 24. Be3 {[%clk 0:00:45]} 24... Qd8 {[%clk
0:01:46.6]} 25. Nxd6 {[%clk 0:00:36.3]} 25... Re7 {[%clk 0:01:47.4]} 26. Ndb5
{[%clk 0:00:17.4]} 26... Rd7 {[%clk 0:01:45.2]} 27. Qe2 {[%clk 0:00:17.2]} 27...
Qc8 {[%clk 0:01:42.1]} 28. Rc1 {[%clk 0:00:15.4]} 28... Bc4 {[%clk 0:01:42.4]}
29. Nd5 {[%clk 0:00:09.5]} 29... Bxe2 {[%clk 0:01:41.7]} 0-1

[Event "*** Titled Tuesday 3|2 Blitz (Late)"]
[Site "Chess.com"]
[Date "2016.12.06"]
[Round "1"]
[White "Paralinch"]
[Black "tango_argentino"]
[Result "0-1"]
[WhiteElo "2642"]
[BlackElo "2360"]
[TimeControl "180+2"]
[EndTime "17:07:01 PST"]
[Termination "tango_argentino won by resignation"]

1. e4 {[%clk 0:01:46.8]} 1... e6 {[%clk 0:03:00]} 2. d4 {[%clk 0:01:47.3]} 2...
d5 {[%clk 0:03:01]} 3. Nc3 {[%clk 0:01:48.9]} 3... Nf6 {[%clk 0:03:01.6]} 4. Bg5
{[%clk 0:01:49.9]} 4... dxe4 {[%clk 0:03:02.3]} 5. Nxe4 {[%clk 0:01:51.8]} 5...
Be7 {[%clk 0:03:03.8]} 6. Bxf6 {[%clk 0:01:53.3]} 6... gxf6 {[%clk 0:03:05.3]}
7. Nf3 {[%clk 0:01:55]} 7... f5 {[%clk 0:03:06.8]} 8. Nc3 {[%clk 0:01:56.6]}
8... a6 {[%clk 0:03:08.3]} 9. Qe2 {[%clk 0:01:57.7]} 9... b5 {[%clk 0:02:57.7]}
10. O-O-O {[%clk 0:01:58.1]} 10... b4 {[%clk 0:02:52.5]} 11. Na4 {[%clk
0:01:59]} 11... Qd5 {[%clk 0:02:49.3]} 12. Kb1 {[%clk 0:02:00.2]} 12... Bd7
{[%clk 0:02:33.3]} 13. Nc5 {[%clk 0:01:57.9]} 13... Bb5 {[%clk 0:02:32.4]} 14.
Qe5 {[%clk 0:01:57]} 14... Qxe5 {[%clk 0:02:31.4]} 15. Bxb5+ {[%clk 0:01:57.5]}
15... axb5 {[%clk 0:02:32.1]} 16. Nxe5 {[%clk 0:01:58.5]} 16... Rg8 {[%clk
0:02:13.1]} 17. g3 {[%clk 0:01:59.1]} 17... Bd6 {[%clk 0:02:09.3]} 18. Rhe1
{[%clk 0:01:57.2]} 18... c6 {[%clk 0:02:05.9]} 19. Ned3 {[%clk 0:01:44.1]} 19...
Na6 {[%clk 0:02:05.1]} 20. Nxa6 {[%clk 0:01:34.3]} 20... Rxa6 {[%clk 0:02:07]}
21. Nc5 {[%clk 0:01:33.9]} 21... Ra7 {[%clk 0:02:04.5]} 22. Re3 {[%clk
0:01:26.1]} 22... Ke7 {[%clk 0:02:04.8]} 23. Nd3 {[%clk 0:01:23.6]} 23... Rga8
{[%clk 0:02:04.2]} 24. Nc1 {[%clk 0:01:24.8]} 24... h5 {[%clk 0:02:00.8]} 25.
Rde1 {[%clk 0:01:25.2]} 25... h4 {[%clk 0:02:01]} 26. gxh4 {[%clk 0:01:25.4]}
26... Rh8 {[%clk 0:02:01.4]} 27. Rh3 {[%clk 0:01:25.9]} 27... Rh5 {[%clk
0:02:00.5]} 28. Nd3 {[%clk 0:01:25.8]} 28... Kf6 {[%clk 0:02:01.3]} 29. f4
{[%clk 0:01:20.2]} 29... Ra8 {[%clk 0:02:01.3]} 30. Ne5 {[%clk 0:01:20]} 30...
Rah8 {[%clk 0:01:58.7]} 31. Nxc6 {[%clk 0:01:19.8]} 31... Rxh4 {[%clk
0:01:57.8]} 32. Rb3 {[%clk 0:01:13.6]} 32... Rxf4 {[%clk 0:01:55.3]} 33. Nxb4
{[%clk 0:01:13]} 33... Rxd4 {[%clk 0:01:55.7]} 34. Nd3 {[%clk 0:01:13.6]} 34...
b4 {[%clk 0:01:56.1]} 35. a3 {[%clk 0:01:05.9]} 35... bxa3 {[%clk 0:01:56.4]}
36. bxa3 {[%clk 0:01:07.8]} 36... Rxh2 {[%clk 0:01:55.4]} 37. Nb2 {[%clk
0:01:08.8]} 37... Rdd2 {[%clk 0:01:52.7]} 38. Rc3 {[%clk 0:01:09.3]} 38... Be5
{[%clk 0:01:52.8]} 39. Rc4 {[%clk 0:01:09.5]} 39... f4 {[%clk 0:01:51.8]} 40. a4
{[%clk 0:01:10.4]} 40... f3 {[%clk 0:01:48.1]} 41. Nd3 {[%clk 0:01:11.3]} 41...
Rxd3 {[%clk 0:01:43.9]} 42. cxd3 {[%clk 0:01:10.7]} 42... Rb2+ {[%clk
0:01:44.9]} 43. Kc1 {[%clk 0:01:12]} 43... Ra2 {[%clk 0:01:43.9]} 44. d4 {[%clk
0:01:06.2]} 44... Ra1+ {[%clk 0:01:42.1]} 45. Kd2 {[%clk 0:01:07.1]} 45... Bf4+
{[%clk 0:01:43.5]} 46. Kd3 {[%clk 0:01:03.5]} 46... Rxe1 {[%clk 0:01:44.2]} 47.
d5 {[%clk 0:01:05.4]} 47... e5 {[%clk 0:01:44]} 48. d6 {[%clk 0:01:06.7]} 48...
Rd1+ {[%clk 0:01:44.9]} 49. Ke4 {[%clk 0:01:07.8]} 49... f2 {[%clk 0:01:46.1]}
50. d7 {[%clk 0:01:09.1]} 50... f1=Q {[%clk 0:01:46.2]} 0-1

[Event "*** Titled Tuesday 3|2 Blitz (Late)"]
[Site "Chess.com"]
[Date "2016.12.06"]
[Round "1"]
[White "SidArun"]
[Black "Divertissement"]
[Result "0-1"]
[WhiteElo "2077"]
[BlackElo "2425"]
[TimeControl "180+2"]
[EndTime "17:07:06 PST"]
[Termination "Divertissement won by resignation"]

1. e4 {[%clk 0:03:02]} 1... c5 {[%clk 0:02:56.6]} 2. c3 {[%clk 0:03:02.4]} 2...
Nf6 {[%clk 0:02:57.3]} 3. e5 {[%clk 0:03:02.6]} 3... Nd5 {[%clk 0:02:58.8]} 4.
d4 {[%clk 0:03:03.9]} 4... cxd4 {[%clk 0:03:00.7]} 5. cxd4 {[%clk 0:03:04.7]}
5... e6 {[%clk 0:03:02]} 6. Nf3 {[%clk 0:03:05.4]} 6... d6 {[%clk 0:03:03.6]} 7.
Nc3 {[%clk 0:03:06.6]} 7... Nxc3 {[%clk 0:03:04.3]} 8. bxc3 {[%clk 0:03:07.6]}
8... Bd7 {[%clk 0:03:06.1]} 9. Bd3 {[%clk 0:03:07.3]} 9... Bc6 {[%clk
0:03:07.4]} 10. Bf4 {[%clk 0:03:03.2]} 10... Be7 {[%clk 0:03:06.1]} 11. O-O
{[%clk 0:03:00.7]} 11... O-O {[%clk 0:03:03.9]} 12. Qb1 {[%clk 0:02:55.3]} 12...
g6 {[%clk 0:03:02.9]} 13. Be4 {[%clk 0:02:54.5]} 13... Qc7 {[%clk 0:02:54.5]}
14. Bxc6 {[%clk 0:02:49.4]} 14... Nxc6 {[%clk 0:02:56.4]} 15. Qe4 {[%clk
0:02:04.4]} 15... Rac8 {[%clk 0:02:52.9]} 16. Rac1 {[%clk 0:01:57.7]} 16... b6
{[%clk 0:02:32.8]} 17. Bh6 {[%clk 0:01:42.5]} 17... Rfe8 {[%clk 0:02:32.4]} 18.
Rfe1 {[%clk 0:01:38.1]} 18... dxe5 {[%clk 0:02:31.7]} 19. Nxe5 {[%clk
0:01:38.3]} 19... Nxe5 {[%clk 0:02:32.8]} 20. dxe5 {[%clk 0:01:38.8]} 20... Qc4
{[%clk 0:02:27.4]} 21. Qe3 {[%clk 0:01:26.4]} 21... Red8 {[%clk 0:02:23.6]} 22.
g3 {[%clk 0:01:13.8]} 22... Rd3 {[%clk 0:02:22.9]} 23. Qe2 {[%clk 0:01:02.6]}
23... Rcd8 {[%clk 0:02:10]} 24. Qf1 {[%clk 0:00:54.8]} 24... b5 {[%clk
0:02:00.3]} 25. Qg2 {[%clk 0:00:54.2]} 25... Qd5 {[%clk 0:01:58.2]} 26. Qxd5
{[%clk 0:00:36.2]} 26... exd5 {[%clk 0:01:53.2]} 27. Rb1 {[%clk 0:00:35.6]}
27... a6 {[%clk 0:01:52.8]} 28. Rb3 {[%clk 0:00:34.2]} 28... Rc8 {[%clk
0:01:51.7]} 29. Re3 {[%clk 0:00:33.8]} 29... Rxe3 {[%clk 0:01:50.7]} 30. Bxe3
{[%clk 0:00:33.6]} 30... Rc6 {[%clk 0:01:50.2]} 31. Bh6 {[%clk 0:00:25.6]} 31...
f6 {[%clk 0:01:50.9]} 32. exf6 {[%clk 0:00:24.1]} 32... Bxf6 {[%clk 0:01:52.8]}
33. a4 {[%clk 0:00:21.6]} 33... bxa4 {[%clk 0:01:50.9]} 34. Rb8+ {[%clk
0:00:22.1]} 34... Kf7 {[%clk 0:01:52.5]} 35. Rf8+ {[%clk 0:00:23.4]} 35... Ke6
{[%clk 0:01:54]} 36. Re8+ {[%clk 0:00:23.6]} 36... Kd7 {[%clk 0:01:47]} 37. Re2
{[%clk 0:00:25.2]} 37... Bxc3 {[%clk 0:01:46.8]} 38. Ra2 {[%clk 0:00:26.2]}
38... Rc4 {[%clk 0:01:47.1]} 39. Bf4 {[%clk 0:00:26.2]} 39... Kc6 {[%clk
0:01:47.8]} 40. Kf1 {[%clk 0:00:27.9]} 40... Kb5 {[%clk 0:01:49.4]} 41. Ke2
{[%clk 0:00:29.7]} 41... Kb4 {[%clk 0:01:51.1]} 42. Kd3 {[%clk 0:00:29.5]} 42...
Kb3 {[%clk 0:01:51]} 43. Re2 {[%clk 0:00:30.8]} 43... Rd4+ {[%clk 0:01:50.9]}
0-1

[Event "*** Titled Tuesday 3|2 Blitz (Late)"]
[Site "Chess.com"]
[Date "2016.12.06"]
[Round "1"]
[White "FranklinAPalomo"]
[Black "Larax"]
[Result "1-0"]
[WhiteElo "2400"]
[BlackElo "1910"]
[TimeControl "180+2"]
[EndTime "17:07:46 PST"]
[Termination "FranklinAPalomo won by resignation"]

1. Nf3 {[%clk 0:02:58.8]} 1... d5 {[%clk 0:02:59.9]} 2. c4 {[%clk 0:02:55.3]}
2... c6 {[%clk 0:03:00.4]} 3. e3 {[%clk 0:02:48.4]} 3... Nf6 {[%clk 0:03:01.2]}
4. Qc2 {[%clk 0:02:42.8]} 4... g6 {[%clk 0:02:45.5]} 5. d3 {[%clk 0:02:39]} 5...
Bg7 {[%clk 0:02:45.8]} 6. Nbd2 {[%clk 0:02:37.3]} 6... O-O {[%clk 0:02:46.8]} 7.
a3 {[%clk 0:02:38.1]} 7... a5 {[%clk 0:02:41.6]} 8. Be2 {[%clk 0:02:39.3]} 8...
Re8 {[%clk 0:02:40.9]} 9. O-O {[%clk 0:02:40.5]} 9... e5 {[%clk 0:02:41.8]} 10.
Rd1 {[%clk 0:02:40.9]} 10... Nbd7 {[%clk 0:02:41.2]} 11. e4 {[%clk 0:02:42.8]}
11... Qe7 {[%clk 0:02:25.1]} 12. b3 {[%clk 0:02:36.9]} 12... Rb8 {[%clk
0:01:49.5]} 13. Bb2 {[%clk 0:02:28.2]} 13... b5 {[%clk 0:01:43.1]} 14. cxd5
{[%clk 0:02:26]} 14... cxd5 {[%clk 0:01:43.8]} 15. Rac1 {[%clk 0:02:27.9]} 15...
Bb7 {[%clk 0:01:42.1]} 16. Qc7 {[%clk 0:02:25.8]} 16... Rec8 {[%clk 0:01:38.7]}
17. Qxa5 {[%clk 0:02:22.7]} 17... dxe4 {[%clk 0:01:35.1]} 18. dxe4 {[%clk
0:02:24.6]} 18... Nxe4 {[%clk 0:01:36.3]} 19. Nxe4 {[%clk 0:02:24.7]} 19... Bxe4
{[%clk 0:01:37.5]} 20. Rxc8+ {[%clk 0:02:25.7]} 20... Rxc8 {[%clk 0:01:38.3]}
21. Qxb5 {[%clk 0:02:22.2]} 21... Bc6 {[%clk 0:01:37.2]} 22. Qa5 {[%clk
0:02:20.5]} 22... e4 {[%clk 0:01:35]} 23. Nd4 {[%clk 0:02:21.2]} 23... e3 {[%clk
0:01:33.4]} 24. f3 {[%clk 0:02:19]} 24... Bxd4 {[%clk 0:00:45.9]} 25. Bxd4
{[%clk 0:02:13.7]} 25... Ra8 {[%clk 0:00:42.2]} 26. Qc7 {[%clk 0:02:08.8]} 26...
Bd5 {[%clk 0:00:33.1]} 27. Bb2 {[%clk 0:02:02.3]} 27... Qe6 {[%clk 0:00:26.2]}
28. Qf4 {[%clk 0:01:53.5]} 28... Bxb3 {[%clk 0:00:24.8]} 29. Qd4 {[%clk
0:01:54.1]} 29... f6 {[%clk 0:00:19.2]} 30. Qxd7 {[%clk 0:01:48.6]} 30... Qxd7
{[%clk 0:00:16.6]} 31. Rxd7 {[%clk 0:01:50.4]} 31... Rc8 {[%clk 0:00:18.3]} 32.
Rb7 {[%clk 0:01:36.7]} 32... Bd5 {[%clk 0:00:13.7]} 33. Rb5 {[%clk 0:01:33.1]}
33... Rc2 {[%clk 0:00:14.4]} 34. Rxd5 {[%clk 0:01:32.6]} 34... Rxb2 {[%clk
0:00:12.7]} 35. Bc4 {[%clk 0:01:31.5]} 35... Rb1+ {[%clk 0:00:11.9]} 36. Rd1+
{[%clk 0:01:32.6]} 1-0

[Event "*** Titled Tuesday 3|2 Blitz (Late)"]
[Site "Chess.com"]
[Date "2016.12.06"]
[Round "1"]
[White "LonesomeGeorge1"]
[Black "Peroncio"]
[Result "1-0"]
[WhiteElo "2197"]
[BlackElo "2494"]
[TimeControl "180+2"]
[EndTime "17:08:17 PST"]
[Termination "LonesomeGeorge1 won by resignation"]

1. e4 {[%clk 0:02:55.1]} 1... c5 {[%clk 0:03:00.3]} 2. Nf3 {[%clk 0:02:54.7]}
2... d6 {[%clk 0:03:01.7]} 3. d4 {[%clk 0:02:54.8]} 3... cxd4 {[%clk 0:03:03.3]}
4. Qxd4 {[%clk 0:02:56.7]} 4... a6 {[%clk 0:03:03.3]} 5. h3 {[%clk 0:02:56.9]}
5... Nc6 {[%clk 0:03:04.1]} 6. Qe3 {[%clk 0:02:58]} 6... g6 {[%clk 0:03:04.8]}
7. c4 {[%clk 0:02:57.9]} 7... Bg7 {[%clk 0:03:00.1]} 8. Nc3 {[%clk 0:02:58]}
8... Nf6 {[%clk 0:03:00.9]} 9. Be2 {[%clk 0:02:56.6]} 9... O-O {[%clk
0:03:01.3]} 10. O-O {[%clk 0:02:54.9]} 10... Nd7 {[%clk 0:03:01.4]} 11. b3
{[%clk 0:02:48.9]} 11... Rb8 {[%clk 0:02:51.5]} 12. Rb1 {[%clk 0:02:17.5]} 12...
Nc5 {[%clk 0:02:48.4]} 13. Bb2 {[%clk 0:02:16.6]} 13... f5 {[%clk 0:02:41.7]}
14. exf5 {[%clk 0:01:44.7]} 14... Bxf5 {[%clk 0:02:41.5]} 15. Rbd1 {[%clk
0:01:45.6]} 15... b5 {[%clk 0:02:30.2]} 16. cxb5 {[%clk 0:01:44.8]} 16... axb5
{[%clk 0:02:30.5]} 17. Ba1 {[%clk 0:01:26.3]} 17... e5 {[%clk 0:02:18.4]} 18.
Bxb5 {[%clk 0:00:53.8]} 18... Nd4 {[%clk 0:02:15]} 19. Bc4+ {[%clk 0:00:52.6]}
19... Kh8 {[%clk 0:02:12.8]} 20. Nxd4 {[%clk 0:00:41.4]} 20... exd4 {[%clk
0:02:13.7]} 21. Rxd4 {[%clk 0:00:42.4]} 21... Qc7 {[%clk 0:01:38.5]} 22. Rdd1
{[%clk 0:00:38.9]} 22... Rbe8 {[%clk 0:01:38.4]} 23. Qd2 {[%clk 0:00:32.6]}
23... Qa5 {[%clk 0:01:35.2]} 24. Nb5 {[%clk 0:00:20.3]} 24... Qxd2 {[%clk
0:01:33]} 25. Bxg7+ {[%clk 0:00:21.7]} 25... Kxg7 {[%clk 0:01:33.4]} 26. Rxd2
{[%clk 0:00:23.6]} 26... Ne4 {[%clk 0:01:33]} 27. Rd4 {[%clk 0:00:24.6]} 27...
Ra8 {[%clk 0:01:23.5]} 28. a4 {[%clk 0:00:24.5]} 28... Rfd8 {[%clk 0:01:16.7]}
29. f3 {[%clk 0:00:24.8]} 29... Nc5 {[%clk 0:01:16.1]} 30. Rxd6 {[%clk
0:00:21.2]} 30... Re8 {[%clk 0:01:12.8]} 31. Rd5 {[%clk 0:00:17.4]} 31... Na6
{[%clk 0:00:55.4]} 32. g4 {[%clk 0:00:14.8]} 32... Be6 {[%clk 0:00:55.1]} 33.
Rd4 {[%clk 0:00:15.9]} 33... Bc8 {[%clk 0:00:50.8]} 34. Rfd1 {[%clk 0:00:15.3]}
34... Nc5 {[%clk 0:00:51.1]} 35. Nc7 {[%clk 0:00:14.5]} 35... Bb7 {[%clk
0:00:45]} 36. Nxe8+ {[%clk 0:00:15.5]} 36... Rxe8 {[%clk 0:00:46.9]} 37. Rd7+
{[%clk 0:00:16.6]} 37... Nxd7 {[%clk 0:00:47]} 38. Rxd7+ {[%clk 0:00:18.5]}
38... Kf6 {[%clk 0:00:48.7]} 39. Rxb7 {[%clk 0:00:19.7]} 39... Re3 {[%clk
0:00:50.6]} 40. Kf2 {[%clk 0:00:20.4]} 40... h5 {[%clk 0:00:52.5]} 41. Kxe3
{[%clk 0:00:21.2]} 1-0

[Event "*** Titled Tuesday 3|2 Blitz (Late)"]
[Site "Chess.com"]
[Date "2016.12.06"]
[Round "1"]
[White "Apocalyps999"]
[Black "ecwinslow"]
[Result "1-0"]
[WhiteElo "2419"]
[BlackElo "2049"]
[TimeControl "180+2"]
[EndTime "17:08:32 PST"]
[Termination "Apocalyps999 won by resignation"]

1. e4 {[%clk 0:03:00.7]} 1... c5 {[%clk 0:02:53.6]} 2. Nf3 {[%clk 0:03:00.2]}
2... d6 {[%clk 0:02:53.9]} 3. d4 {[%clk 0:03:01.6]} 3... cxd4 {[%clk 0:02:53.9]}
4. Nxd4 {[%clk 0:03:03.2]} 4... Nf6 {[%clk 0:02:55]} 5. Nc3 {[%clk 0:03:04.7]}
5... a6 {[%clk 0:02:55.8]} 6. Bg5 {[%clk 0:03:05.3]} 6... e6 {[%clk 0:02:55.8]}
7. f4 {[%clk 0:03:05.6]} 7... Nbd7 {[%clk 0:02:55.6]} 8. Qf3 {[%clk 0:03:06.6]}
8... Qc7 {[%clk 0:02:54.7]} 9. O-O-O {[%clk 0:03:07.1]} 9... Be7 {[%clk
0:02:48.8]} 10. g4 {[%clk 0:03:05.9]} 10... b5 {[%clk 0:02:47]} 11. Bxf6 {[%clk
0:03:06.7]} 11... Nxf6 {[%clk 0:02:46.8]} 12. g5 {[%clk 0:03:07.1]} 12... Nd7
{[%clk 0:02:47.5]} 13. f5 {[%clk 0:03:08.3]} 13... Nc5 {[%clk 0:02:46.2]} 14. f6
{[%clk 0:03:08.2]} 14... gxf6 {[%clk 0:02:46.2]} 15. gxf6 {[%clk 0:03:08.3]}
15... Bf8 {[%clk 0:02:47.4]} 16. Rg1 {[%clk 0:03:04.7]} 16... h5 {[%clk
0:02:47]} 17. Bh3 {[%clk 0:03:01.5]} 17... Bd7 {[%clk 0:02:42]} 18. Kb1 {[%clk
0:02:59]} 18... b4 {[%clk 0:02:39.4]} 19. Nd5 {[%clk 0:02:43.6]} 19... exd5
{[%clk 0:02:39.1]} 20. exd5 {[%clk 0:02:44.6]} 20... Bxh3 {[%clk 0:02:20.6]} 21.
Qxh3 {[%clk 0:00:41]} 21... Qd7 {[%clk 0:02:20]} 22. Qf3 {[%clk 0:00:32.1]}
22... O-O-O {[%clk 0:02:15.8]} 23. Nc6 {[%clk 0:00:28.6]} 23... Re8 {[%clk
0:01:55.6]} 24. Nxb4 {[%clk 0:00:29.5]} 24... Qb5 {[%clk 0:01:33.8]} 25. Nc6
{[%clk 0:00:30.2]} 25... Kb7 {[%clk 0:01:33.9]} 26. Ka1 {[%clk 0:00:29.9]} 26...
a5 {[%clk 0:01:23.5]} 27. Rg7 {[%clk 0:00:30.7]} 27... Qe2 {[%clk 0:01:09.1]}
28. Rxf7+ {[%clk 0:00:30.7]} 28... Kb6 {[%clk 0:01:08.5]} 29. Qh1 {[%clk
0:00:24.3]} 29... Bh6 {[%clk 0:00:58.6]} 30. Nd4 {[%clk 0:00:23.9]} 30... Qe4
{[%clk 0:00:53.3]} 31. Qf1 {[%clk 0:00:22.8]} 31... Qxd4 {[%clk 0:00:29.2]} 32.
Rxd4 {[%clk 0:00:22.5]} 32... Re3 {[%clk 0:00:18]} 33. a4 {[%clk 0:00:22.9]}
33... Nxa4 {[%clk 0:00:11.8]} 34. Rxa4 {[%clk 0:00:23.2]} 34... Rhe8 {[%clk
0:00:12.1]} 35. Ka2 {[%clk 0:00:23.8]} 35... Re2 {[%clk 0:00:11.8]} 36. Re7
{[%clk 0:00:20.7]} 36... R8xe7 {[%clk 0:00:09.8]} 37. fxe7 {[%clk 0:00:21.6]}
37... Rxe7 {[%clk 0:00:10.6]} 38. Qf6 {[%clk 0:00:22.4]} 1-0